No of Transactions,Dept_Family,Entity_Name,Cert Date,Supplier Name,Reference,Gross Amt,Group/Department,Type of Expenditure - Subjective Codes
1,DCMS,Historic England,25/03/2022,Allerdale Borough Council,0083001649,"136,568.00",Regions Group-High Str (HAZ) - Regions,Grants Area
2,DCMS,Historic England,04/03/2022,Appleby Town Council,0082006067,"29,466.00",Regions Group-North West - RD,Grants Historic Buildings
3,DCMS,Historic England,18/03/2022,Appleby Town Council,0082006101,"31,480.00",Regions Group-North West - RD,Grants Historic Buildings
4,DCMS,Historic England,02/03/2022,ASE II Temple Mill Limited,0082006065,"254,400.00",Regions Group-North East & Yorkshire - RD,Grants Historic Buildings
5,DCMS,Historic England,11/03/2022,ASE II Temple Mill Limited,0082006077,"127,200.00",Regions Group-North East & Yorkshire - RD,Grants Historic Buildings
6,DCMS,Historic England,25/03/2022,Barnsley Metropolitan Borough Council,0083001641,"503,181.00",Regions Group-High Str (HAZ) - Regions,Grants Area
7,DCMS,Historic England,09/03/2022,Barrow Borough Council,0083001601,"30,000.00",Public Engagement-High Str (HAZ) - Public Engag,Grants Other Grants
8,DCMS,Historic England,25/03/2022,Barrow Borough Council,0083001648,"230,391.00",Regions Group-High Str (HAZ) - Regions,Grants Area
9,DCMS,Historic England,25/03/2022,Bath and North East Somerset Council,0083001643,"339,804.00",Regions Group-High Str (HAZ) - Regions,Grants Area
10,DCMS,Historic England,25/03/2022,BCP Council,0083001660,"486,396.00",Regions Group-High Str (HAZ) - Regions,Grants Area
11,DCMS,Historic England,16/03/2022,Beavers Arts Ltd,0083001612,"33,912.00",Public Engagement-High Str (HAZ) - Public Engag,Grants Other Grants
12,DCMS,Historic England,22/03/2022,Birmingham City Council,0082006131,"80,138.00",Regions Group-Midlands - RD,Grants Historic Buildings
13,DCMS,Historic England,22/03/2022,Birmingham City Council,0082006133,"50,000.00",Regions Group-Midlands - RD,Grants Historic Buildings
14,DCMS,Historic England,25/03/2022,Blackpool Council,0083001658,"456,385.00",Regions Group-High Str (HAZ) - Regions,Grants Area
15,DCMS,Historic England,28/03/2022,Blackpool Council,0083001671,"25,500.00",Public Engagement-High Str (HAZ) - Public Engag,Grants Other Grants
16,DCMS,Historic England,29/03/2022,Bluesource Information Limited,0040140505,"30,096.00",Corporate Services-IMT,Service Management Contracts
17,DCMS,Historic England,04/03/2022,"BNP Paribas Real Estate, Rent / Services",0040140028,"278,236.75",Corporate Services-Office Estate,Rent Payable (Building)
18,DCMS,Historic England,14/03/2022,"BNP Paribas Real Estate, Rent / Services",0040140291,"88,941.35",Corporate Services-Office Estate,Building Service Charges
19,DCMS,Historic England,28/03/2022,Breckland Council,0083001678,"79,321.00",Regions Group-High Str (HAZ) - Regions,Grants Area
20,DCMS,Historic England,23/03/2022,Burghley House Preservation Trust Ltd,0083001633,"83,900.00",Business Improvement-Grants,Grants Historic Buildings
21,DCMS,Historic England,15/03/2022,Burnley Borough Council,0082006075,"35,040.00",Regions Group-North West - RD,Grants Historic Buildings
22,DCMS,Historic England,14/03/2022,Burnley Borough Council,0083001610,"28,800.00",Public Engagement-High Str (HAZ) - Public Engag,Grants Other Grants
23,DCMS,Historic England,25/03/2022,Burnley Borough Council,0083001650,"373,377.00",Regions Group-High Str (HAZ) - Regions,Grants Area
24,DCMS,Historic England,22/03/2022,Cambridge PPF,0082006118,"27,000.00",Regions Group-East - RD,Grants Historic Buildings
25,DCMS,Historic England,30/03/2022,Canal & River Trust,0083001707,"1,669,494.00",Business Improvement-Grants,Grants Historic Buildings
26,DCMS,Historic England,31/03/2022,Capita IB Solutions Ltd,0040140739,"145,080.00",Corporate Services-Finance & Procurement Dept,Software Maintenance
27,DCMS,Historic England,21/03/2022,Catholic Trust for England and Wales,0083001625,"1,145,909.00",Business Improvement-Grants,Grants Historic Buildings
28,DCMS,Historic England,29/03/2022,Catholic Trust for England and Wales,0083001684,"54,704.00",Business Improvement-Grants,Grants Historic Buildings
29,DCMS,Historic England,11/03/2022,CDW UK,0040140208,"70,844.30",Corporate Services-IMT,Equipment & Furniture <10k
30,DCMS,Historic England,25/03/2022,Central Methodist Church Council,0083001655,"87,762.00",Business Improvement-Grants,Grants Historic Buildings
31,DCMS,Historic England,28/03/2022,Charterhouse Coventry Preservation Trust,0082006161,"50,000.00",Regions Group-Midlands - RD,Grants Historic Buildings
32,DCMS,Historic England,30/03/2022,Charterhouse Coventry Preservation Trust,0082006180,"90,000.00",Regions Group-Midlands - RD,Grants Historic Buildings
33,DCMS,Historic England,30/03/2022,Charterhouse Coventry Preservation Trust,0082006181,"90,000.00",Regions Group-Midlands - RD,Grants Historic Buildings
34,DCMS,Historic England,16/03/2022,City of Lincoln Council,0083001611,"30,600.00",Public Engagement-High Str (HAZ) - Public Engag,Grants Other Grants
35,DCMS,Historic England,24/03/2022,Cleveland Pools Trust,0082006140,"49,555.00",Regions Group-South West - RD,Grants Historic Buildings
36,DCMS,Historic England,07/03/2022,Council British Arch York,0081006020,"30,000.00",Business Improvement-Grants,Grants Historic Environment
37,DCMS,Historic England,25/03/2022,Craven District Council,0083001638,"751,201.00",Regions Group-High Str (HAZ) - Regions,Grants Area
38,DCMS,Historic England,29/03/2022,Createc Ltd,0040140628,"70,243.20",Policy & Evidence-National Specialist Services,Plant & Equipment > 10k
39,DCMS,Historic England,29/03/2022,Createc Ltd,0040140628,"3,960.00",Policy & Evidence-National Specialist Services,Plant & Equipment > 10k
40,DCMS,Historic England,29/03/2022,Createc Ltd,0040140628,"5,268.00",Policy & Evidence-National Specialist Services,Plant & Equipment > 10k
41,DCMS,Historic England,29/03/2022,Createc Ltd,0040140628,954.00,Policy & Evidence-National Specialist Services,Plant & Equipment > 10k
42,DCMS,Historic England,29/03/2022,Createc Ltd,0040140628,"3,000.00",Policy & Evidence-National Specialist Services,Plant & Equipment > 10k
43,DCMS,Historic England,11/03/2022,Croft Building and Conservation Ltd,0040140229,"278,402.40",Shrewsbury Flax Mill Maltings-Shrewsbury Flax Mill Maltings,Works (Non Office)
44,DCMS,Historic England,11/03/2022,Croft Building and Conservation Ltd,0040140229,"96,000.00",Shrewsbury Flax Mill Maltings-Shrewsbury Flax Mill Maltings,Works (Non Office)
45,DCMS,Historic England,11/03/2022,Croft Building and Conservation Ltd,0040140230,"25,219.20",Shrewsbury Flax Mill Maltings-Shrewsbury Flax Mill Maltings,Works (Non Office)
46,DCMS,Historic England,15/03/2022,Croft Building and Conservation Ltd,0040140290,"29,203.20",Shrewsbury Flax Mill Maltings-Shrewsbury Flax Mill Maltings,Works (Non Office)
47,DCMS,Historic England,29/03/2022,Croft Building and Conservation Ltd,0040140617,"41,572.14",Shrewsbury Flax Mill Maltings-Shrewsbury Flax Mill Maltings,Works (Non Office)
48,DCMS,Historic England,30/03/2022,DCMS,0020074887,"82,000.00",Corporate Services-Corporate,Government Grant in Aid
49,DCMS,Historic England,04/03/2022,Derbyshire Historic Buildings Trust,0082006066,"123,230.00",Regions Group-Midlands - RD,Grants Historic Buildings
50,DCMS,Historic England,11/03/2022,Diocese of Plymouth,0082006078,"39,367.00",Regions Group-South West - RD,Grants Historic Buildings
51,DCMS,Historic England,18/03/2022,Diocese of Plymouth,0082006103,"39,366.00",Regions Group-South West - RD,Grants Historic Buildings
52,DCMS,Historic England,18/03/2022,Dudley Metropolitan Borough Council,0083001616,"28,200.00",Public Engagement-High Str (HAZ) - Public Engag,Grants Other Grants
53,DCMS,Historic England,29/03/2022,Dudley Metropolitan Borough Council,0083001689,"453,942.00",Regions Group-High Str (HAZ) - Regions,Grants Area
54,DCMS,Historic England,25/03/2022,Dunstable Town Council,0083001646,"291,079.00",Regions Group-High Str (HAZ) - Regions,Grants Area
55,DCMS,Historic England,18/03/2022,East Quantoxhead Estate,0082006100,"39,807.00",Regions Group-South West - RD,Grants Historic Buildings
56,DCMS,Historic England,25/03/2022,East Suffolk Council,0083001647,"444,487.00",Regions Group-High Str (HAZ) - Regions,Grants Area
57,DCMS,Historic England,28/03/2022,EDF  ,0020074875,"31,305.40",Corporate Services-Corporate,Electricity
58,DCMS,Historic England,09/03/2022,Ely Diocesan Board of Finance,0090516343,"25,240.00",Regions Group-East - RD,Grants Capacity Building Grants
59,DCMS,Historic England,10/03/2022,Emergency Exit Arts Ltd,0083001602,"30,000.00",Public Engagement-High Str (HAZ) - Public Engag,Technical & Legal Advice External Technical Advice
60,DCMS,Historic England,23/03/2022,English Heritage Trust,0083001629,"1,258,986.00",Business Improvement-Grants,Grants Historic Buildings
61,DCMS,Historic England,30/03/2022,English Heritage Trust,0083001708,"100,000.00",Business Improvement-Grants,Grants Historic Buildings
62,DCMS,Historic England,11/03/2022,ESRI (UK) Ltd,0040140194,"252,000.00",Corporate Services-IMT,Software Maintenance
63,DCMS,Historic England,28/03/2022,Evesham Abbey Trust,0082006162,"38,213.00",Regions Group-Midlands - RD,Grants Historic Buildings
64,DCMS,Historic England,17/03/2022,exeGesIS Spatial Data Management,0040140211,"35,400.00",Policy & Evidence-Strategy & Listing,Bought in Advice
65,DCMS,Historic England,09/03/2022,Forest of Dean Buildings Preservation,0082006071,"38,521.00",Regions Group-South West - RD,Grants Historic Buildings
66,DCMS,Historic England,15/03/2022,Freidman FM Ltd,0040139594,"10,027.64",Corporate Services-Facilities Management,Office Cleaning
67,DCMS,Historic England,15/03/2022,Freidman FM Ltd,0040139594,"9,226.67",Corporate Services-Facilities Management,Security
68,DCMS,Historic England,15/03/2022,Freidman FM Ltd,0040139594,"15,878.02",Corporate Services-Facilities Management,Maintenance
69,DCMS,Historic England,15/03/2022,Freidman FM Ltd,0040139594,"17,273.47",Corporate Services-Facilities Management,Maintenance
70,DCMS,Historic England,15/03/2022,Freidman FM Ltd,0040139594,"1,528.61",Corporate Services-Facilities Management,Maintenance
71,DCMS,Historic England,28/03/2022,Freidman FM Ltd,0040140008,"9,212.88",Corporate Services-Facilities Management,Office Cleaning
72,DCMS,Historic England,28/03/2022,Freidman FM Ltd,0040140008,"6,124.44",Corporate Services-Facilities Management,Security
73,DCMS,Historic England,28/03/2022,Freidman FM Ltd,0040140008,"15,878.02",Corporate Services-Facilities Management,Maintenance
74,DCMS,Historic England,28/03/2022,Freidman FM Ltd,0040140008,"17,273.47",Corporate Services-Facilities Management,Maintenance
75,DCMS,Historic England,28/03/2022,Freidman FM Ltd,0040140008,"1,528.61",Corporate Services-Facilities Management,Maintenance
76,DCMS,Historic England,28/03/2022,Freidman FM Ltd,0040140008,814.76,Corporate Services-Facilities Management,Office Cleaning
77,DCMS,Historic England,28/03/2022,Freidman FM Ltd,0040140008,"3,102.23",Corporate Services-Facilities Management,Office Cleaning
78,DCMS,Historic England,18/03/2022,Friends of Friendless Churches,0083001620,"575,329.00",Business Improvement-Grants,Grants Historic Buildings
79,DCMS,Historic England,29/03/2022,Friends of Friendless Churches,0083001699,"300,272.00",Business Improvement-Grants,Grants Historic Buildings
80,DCMS,Historic England,02/03/2022,Friends of Shenstone Tower,0082006060,"149,130.00",Regions Group-Midlands - RD,Grants Historic Buildings
81,DCMS,Historic England,25/03/2022,Fylde Borough Council,0083001651,"243,680.00",Regions Group-High Str (HAZ) - Regions,Grants Area
82,DCMS,Historic England,30/03/2022,Geoffrey Robinson Ltd,0040140577,"33,191.20",Corporate Services-Office Estate,Repairs
83,DCMS,Historic England,11/03/2022,Ghyllside Ltd T/A Rapid Ramp,0040140187,"26,935.20",Corporate Services-Office Estate,Repairs
84,DCMS,Historic England,14/03/2022,Gloucester City Council,0083001609,"30,000.00",Public Engagement-High Str (HAZ) - Public Engag,Grants Other Grants
85,DCMS,Historic England,29/03/2022,Gosport Borough Council,0083001683,"633,669.00",Regions Group-High Str (HAZ) - Regions,Grants Area
86,DCMS,Historic England,09/03/2022,Great Yarmouth Borough Council,0082006070,"30,950.00",Regions Group-East - RD,Grants Historic Buildings
87,DCMS,Historic England,08/03/2022,Great Yarmouth Borough Council,0083001599,"270,000.00",Regions Group-High Str (HAZ) - Regions,Grants Area
88,DCMS,Historic England,28/03/2022,Great Yarmouth Borough Council,0083001672,"461,435.00",Regions Group-High Str (HAZ) - Regions,Grants Area
89,DCMS,Historic England,22/03/2022,Grimsby Youth Zone,0082006113,"40,000.00",Regions Group-Midlands - RD,Grants Historic Buildings
90,DCMS,Historic England,11/03/2022,Hambleton District Council,0083001605,"34,176.00",Regions Group-High Str (HAZ) - Regions,Grants Area
91,DCMS,Historic England,04/03/2022,Harlow Property Management Ltd - Rent,0040140052,"54,750.00",Corporate Services-Office Estate,Rent Payable (Building)
92,DCMS,Historic England,25/03/2022,Harwich Electric Palace Trust,0082006156,"40,415.00",Regions Group-East - RD,Grants Historic Buildings
93,DCMS,Historic England,02/03/2022,Heart of Hastings CLT,0083001588,"453,571.00",Regions Group-High Str (HAZ) - Regions,Grants Area
94,DCMS,Historic England,29/03/2022,Heart of Hastings CLT,0083001688,"670,822.00",Regions Group-High Str (HAZ) - Regions,Grants Area
95,DCMS,Historic England,25/03/2022,High Peak Borough Council,0083001656,"30,000.00",Public Engagement-High Str (HAZ) - Public Engag,Grants Other Grants
96,DCMS,Historic England,29/03/2022,High Peak Borough Council,0083001690,"198,775.00",Regions Group-High Str (HAZ) - Regions,Grants Area
97,DCMS,Historic England,11/03/2022,Hinckley and Bosworth Borough Council,0083001606,"40,218.00",Regions Group-High Str (HAZ) - Regions,Grants Area
98,DCMS,Historic England,29/03/2022,Hinckley and Bosworth Borough Council,0083001704,"178,697.00",Regions Group-High Str (HAZ) - Regions,Grants Area
99,DCMS,Historic England,22/03/2022,Historic Chapels Trust,0082006137,"27,063.00",Regions Group-East - RD,Grants Historic Buildings
100,DCMS,Historic England,28/03/2022,Historic Coventry Trust,0083001675,"29,250.00",Public Engagement-High Str (HAZ) - Public Engag,Grants Other Grants
101,DCMS,Historic England,29/03/2022,Historic Houses Foundation,0083001698,"550,992.00",Business Improvement-Grants,Grants Historic Buildings
102,DCMS,Historic England,23/03/2022,Historic Royal Palaces,0083001630,"747,961.00",Business Improvement-Grants,Grants Historic Buildings
103,DCMS,Historic England,16/03/2022,Hornet Services Sailing Club Limited,0082006085,"99,987.00",Regions Group-London & South East - RD,Grants Historic Buildings
104,DCMS,Historic England,16/03/2022,Hornet Services Sailing Club Limited,0082006095,"27,478.00",Regions Group-London & South East - RD,Grants Historic Buildings
105,DCMS,Historic England,21/03/2022,Kettering Borough Council,0083001624,"1,412,237.00",Regions Group-High Str (HAZ) - Regions,Grants Area
106,DCMS,Historic England,21/03/2022,Kingston upon Hull City Council,0090516365,"53,380.00",Regions Group-North East & Yorkshire - RD,Grants Area
107,DCMS,Historic England,15/03/2022,Kirklees Council,0090516353,"97,000.00",Regions Group-North East & Yorkshire - RD,Grants Area
108,DCMS,Historic England,25/03/2022,Knowsley Metropolitan Borough Council,0083001654,"628,577.00",Regions Group-High Str (HAZ) - Regions,Grants Area
109,DCMS,Historic England,29/03/2022,Korec,0040140562,"76,629.60",Policy & Evidence-National Specialist Services,Plant & Equipment > 10k
110,DCMS,Historic England,23/03/2022,Leeds Castle Foundation,0083001632,"187,836.00",Business Improvement-Grants,Grants Historic Buildings
111,DCMS,Historic England,25/03/2022,Leeds City Council,0083001665,"35,932.00",Public Engagement-High Str (HAZ) - Public Engag,Grants Other Grants
112,DCMS,Historic England,28/03/2022,Leeds City Council,0083001674,"592,659.00",Regions Group-High Str (HAZ) - Regions,Grants Area
113,DCMS,Historic England,29/03/2022,Leicester City Council,0083001692,"1,005,799.00",Regions Group-High Str (HAZ) - Regions,Grants Area
114,DCMS,Historic England,31/03/2022,Leicester City Council,0090516413,"25,000.00",Regions Group-Midlands - RD,Grants Other Grants
115,DCMS,Historic England,28/03/2022,Leigh Building Preservation Trust,0082006168,"120,596.00",Regions Group-North West - RD,Grants Historic Buildings
116,DCMS,Historic England,29/03/2022,Leighton Hall,0083001697,"42,698.00",Business Improvement-Grants,Grants Historic Buildings
117,DCMS,Historic England,18/03/2022,Leominster Town Council,0083001615,"25,500.00",Public Engagement-High Str (HAZ) - Public Engag,Grants Other Grants
118,DCMS,Historic England,29/03/2022,Lincoln City Council,0083001693,"882,527.00",Regions Group-High Str (HAZ) - Regions,Grants Area
119,DCMS,Historic England,09/03/2022,Live Music Now Limited,0083001600,"47,840.00",Public Engagement-High Str (HAZ) - Public Engag,Technical & Legal Advice External Technical Advice
120,DCMS,Historic England,18/03/2022,Locus Consulting ltd,0040140403,"19,304.00",Business Improvement-Grants,Historic Env Commissions VAT
121,DCMS,Historic England,18/03/2022,Locus Consulting ltd,0040140403,"13,130.00",Business Improvement-Grants,Historic Env Commissions VAT
122,DCMS,Historic England,29/03/2022,London Borough of Brent,0083001681,"30,000.00",Public Engagement-High Str (HAZ) - Public Engag,Grants Other Grants
123,DCMS,Historic England,22/03/2022,London Borough of Bromley,0082006121,"354,660.00",Regions Group-London & South East - RD,Grants Historic Buildings
124,DCMS,Historic England,17/03/2022,London Borough of Haringey,0083001613,"35,863.00",Regions Group-High Str (HAZ) - Regions,Grants Area
125,DCMS,Historic England,24/03/2022,London Borough of Harrow,0082006151,"33,225.00",Regions Group-London & South East - RD,Grants Historic Buildings
126,DCMS,Historic England,22/03/2022,London Borough of Hounslow,0082006111,"450,500.00",Regions Group-London & South East - RD,Grants Historic Buildings
127,DCMS,Historic England,28/03/2022,Mather & Co Ltd,0040140311,"148,696.91",Shrewsbury Flax Mill Maltings-Shrewsbury Flax Mill Maltings,Bought in Advice
128,DCMS,Historic England,02/03/2022,Medway Council,0083001590,"51,066.00",Regions Group-High Str (HAZ) - Regions,Grants Area
129,DCMS,Historic England,18/03/2022,MHR International UK Ltd,0040140223,"102,694.61",Corporate Services-IMT,Software Maintenance
130,DCMS,Historic England,18/03/2022,MHR International UK Ltd,0040140224,"46,689.60",Corporate Services-IMT,Software Maintenance
131,DCMS,Historic England,18/03/2022,MHR International UK Ltd,0040140226,"27,943.20",Corporate Services-IMT,Software Maintenance
132,DCMS,Historic England,02/03/2022,Microsoft Ltd,0040139785,"107,235.36",Corporate Services-IMT,Software Maintenance
133,DCMS,Historic England,30/03/2022,Microsoft Ltd,0040140359,"65,912.53",Corporate Services-IMT,Software Maintenance
134,DCMS,Historic England,24/03/2022,Microsoft Ltd,0040140360,"237,799.73",Corporate Services-IMT,Software Maintenance
135,DCMS,Historic England,25/03/2022,Mid Devon District Council,0083001642,"47,870.00",Regions Group-High Str (HAZ) - Regions,Grants Area
136,DCMS,Historic England,25/03/2022,Middlesbrough Council,0083001637,"424,402.00",Regions Group-High Str (HAZ) - Regions,Grants Area
137,DCMS,Historic England,11/03/2022,Morecambe Winter Gardens Preservation,0082006076,"83,686.00",Regions Group-North West - RD,Grants Historic Buildings
138,DCMS,Historic England,28/03/2022,"North Park Furnace, Fernhurst, West Sussex",0082006174,"68,781.00",Regions Group-London & South East - RD,Grants Historic Buildings
139,DCMS,Historic England,22/03/2022,Murston All Saints Trust,0082006125,"43,200.00",Regions Group-London & South East - RD,Grants Historic Buildings
140,DCMS,Historic England,29/03/2022,Newport and Carisbrooke Parish Council,0083001705,"180,569.00",Regions Group-High Str (HAZ) - Regions,Grants Area
141,DCMS,Historic England,02/03/2022,North East Lincolnshire,0090516333,"27,000.00",Regions Group-Midlands - RD,Grants Area
142,DCMS,Historic England,28/03/2022,North Norfolk District Council,0083001676,"533,548.00",Regions Group-High Str (HAZ) - Regions,Grants Area
143,DCMS,Historic England,25/03/2022,North Somerset Council,0090516387,"114,734.00",Regions Group-South West - RD,Grants Area
144,DCMS,Historic England,02/03/2022,North Tuddenham Parochial Church Council,0082006062,"120,000.00",Regions Group-East - RD,Grants Historic Buildings
145,DCMS,Historic England,03/03/2022,North Tyneside Council,0083001591,"748,062.00",Regions Group-High Str (HAZ) - Regions,Grants Area
146,DCMS,Historic England,25/03/2022,North Tyneside Council,0083001661,"497,903.00",Regions Group-High Str (HAZ) - Regions,Grants Area
147,DCMS,Historic England,22/03/2022,Norwich Historic Churchs Trust,0082006138,"250,000.00",Regions Group-East - RD,Grants Historic Buildings
148,DCMS,Historic England,30/03/2022,Nottingham City Council,0090516402,"49,976.46",Regions Group-Midlands - RD,Grants Area
149,DCMS,Historic England,30/03/2022,Nottingham City Council,0090516402,"89,400.00",Regions Group-Midlands - RD,Grants Area
150,DCMS,Historic England,30/03/2022,Nottingham City Council,0090516402,"56,103.54",Regions Group-Midlands - RD,Grants Area
151,DCMS,Historic England,30/03/2022,Nottingham City Council,0090516405,"66,089.00",Regions Group-Midlands - RD,Grants Area
152,DCMS,Historic England,30/03/2022,Ontotext,0020074868,"40,574.40",Corporate Services-IMT,IT Licences <10k
153,DCMS,Historic England,30/03/2022,Ontotext,0020074868,"8,117.52",Business Improvement-Programmes & Planning,IT Licences <10k
154,DCMS,Historic England,28/03/2022,Oracle Corporation UK Ltd,0040140465,"45,249.82",Corporate Services-IMT,Software Maintenance
155,DCMS,Historic England,21/03/2022,Photoworks,0083001622,"27,100.00",Public Engagement-High Str (HAZ) - Public Engag,Technical & Legal Advice External Technical Advice
156,DCMS,Historic England,25/03/2022,Plymouth City Council,0083001645,"370,191.00",Regions Group-High Str (HAZ) - Regions,Grants Area
157,DCMS,Historic England,09/03/2022,Queen Street Masonic Temple Ltd,0082006073,"92,000.00",Regions Group-North East & Yorkshire - RD,Grants Historic Buildings
158,DCMS,Historic England,22/03/2022,Railway Paths Ltd,0082006139,"63,000.00",Regions Group-Midlands - RD,Grants Historic Buildings
159,DCMS,Historic England,10/03/2022,Ratcliffes,0040140227,"307,500.00",Corporate Services-Office Estate,Rent Payable (Building)
160,DCMS,Historic England,25/03/2022,Rijksuniversiteit Groningen,0020074870,"30,160.00",Policy & Evidence-National Specialist Services,Bought in Research
161,DCMS,Historic England,28/03/2022,Rochdale Borough Council,0082006166,"227,870.00",Regions Group-North West - RD,Grants Historic Buildings
162,DCMS,Historic England,01/03/2022,Rochdale Borough Council,0090516332,"65,746.00",Regions Group-North West - RD,Grants Area
163,DCMS,Historic England,24/03/2022,Rochdale Borough Council,0090516384,"79,487.00",Regions Group-North West - RD,Grants Area
164,DCMS,Historic England,25/03/2022,Rossendale Borough Council,0083001659,"415,761.00",Regions Group-High Str (HAZ) - Regions,Grants Area
165,DCMS,Historic England,17/03/2022,Royal Borough of Greenwich,0083001614,"177,235.00",Regions Group-High Str (HAZ) - Regions,Grants Area
166,DCMS,Historic England,29/03/2022,Royal Borough of Greenwich,0083001687,"394,977.00",Regions Group-High Str (HAZ) - Regions,Grants Area
167,DCMS,Historic England,29/03/2022,Ryde Town Council,0083001682,"158,510.00",Regions Group-High Str (HAZ) - Regions,Grants Area
168,DCMS,Historic England,30/03/2022,Saltdean Lido CIC,0082006171,"107,500.00",Regions Group-London & South East - RD,Grants Historic Buildings
169,DCMS,Historic England,22/03/2022,Sandwell Metropolitan Borough Council,0083001626,"26,700.00",Public Engagement-High Str (HAZ) - Public Engag,Grants Other Grants
170,DCMS,Historic England,29/03/2022,Sandwell Metropolitan Borough Council,0083001696,"407,999.00",Regions Group-High Str (HAZ) - Regions,Grants Area
171,DCMS,Historic England,04/03/2022,Savills (UK) Ltd,0040139966,"9,622.80",Corporate Services-Office Estate,Building Service Charges
172,DCMS,Historic England,04/03/2022,Savills (UK) Ltd,0040139966,"61,416.90",Corporate Services-Office Estate,Rent Payable (Building)
173,DCMS,Historic England,25/03/2022,Selby District Council,0083001639,"39,500.00",Regions Group-High Str (HAZ) - Regions,Grants Area
174,DCMS,Historic England,25/03/2022,SevernSoft Limited T/A,0040139961,"17,994.00",Business Improvement-Organisational Development,IT Licences <10k
175,DCMS,Historic England,25/03/2022,SevernSoft Limited T/A,0040139961,"7,344.00",Business Improvement-Organisational Development,Software Maintenance
176,DCMS,Historic England,25/03/2022,SevernSoft Limited T/A,0040139961,"2,880.00",Business Improvement-Organisational Development,System Developments <50k
177,DCMS,Historic England,22/03/2022,Sheerness Dockyard Preservation Trust,0082006126,"67,200.00",Regions Group-London & South East - RD,Grants Historic Buildings
178,DCMS,Historic England,29/03/2022,Shropshire Council,0083001695,"461,314.00",Regions Group-High Str (HAZ) - Regions,Grants Area
179,DCMS,Historic England,02/03/2022,Sir TCW Ingilby T/A The Ripley Castle,0082006064,"34,354.00",Regions Group-North East & Yorkshire - RD,Grants Historic Buildings
180,DCMS,Historic England,10/03/2022,Skylarkeology,0081006039,"35,000.00",Business Improvement-Grants,Grants Historic Environment
181,DCMS,Historic England,11/03/2022,SoftwareOne UK Ltd,0040139996,"76,304.75",Corporate Services-IMT,Hosting
182,DCMS,Historic England,16/03/2022,Somerset West and Taunton Council,0082006091,"131,960.00",Regions Group-South West - RD,Grants Historic Buildings
183,DCMS,Historic England,16/03/2022,Somerset West and Taunton Council,0082006093,"52,206.00",Regions Group-South West - RD,Grants Historic Buildings
184,DCMS,Historic England,28/03/2022,Somerset West and Taunton Council,0082006172,"52,206.00",Regions Group-South West - RD,Grants Historic Buildings
185,DCMS,Historic England,30/03/2022,Somerset West and Taunton Council,0082006179,"131,960.00",Regions Group-South West - RD,Grants Historic Buildings
186,DCMS,Historic England,29/03/2022,South Kesteven District Council,0083001691,"120,799.00",Regions Group-High Str (HAZ) - Regions,Grants Area
187,DCMS,Historic England,25/03/2022,South Somerset District Council,0083001640,"250,152.00",Regions Group-High Str (HAZ) - Regions,Grants Area
188,DCMS,Historic England,23/03/2022,Stonor Enterprises PoMW2,0083001634,"288,894.00",Business Improvement-Grants,Grants Historic Buildings
189,DCMS,Historic England,18/03/2022,Swindon Borough Council,0090516364,"32,709.00",Regions Group-South West - RD,Grants Capacity Building Grants
190,DCMS,Historic England,22/03/2022,Tendring District Council,0082006135,"56,038.00",Regions Group-East - RD,Grants Historic Buildings
191,DCMS,Historic England,25/03/2022,Tewkesbury Borough Council,0083001644,"26,792.00",Regions Group-High Str (HAZ) - Regions,Grants Area
192,DCMS,Historic England,29/03/2022,Thanet District Council,0083001686,"36,393.00",Regions Group-High Str (HAZ) - Regions,Grants Area
193,DCMS,Historic England,25/03/2022,Thanet District Council,0090516392,"33,000.00",Regions Group-London & South East - RD,Grants Capacity Building Grants
194,DCMS,Historic England,29/03/2022,The Archbishop's Council,0083001685,"2,279,070.00",Business Improvement-Grants,Grants Historic Buildings
195,DCMS,Historic England,23/03/2022,The Architectural Heritage Fund,0081006109,"2,226,368.00",Business Improvement-High Str (HAZ) - Busin Improv,Grants Historic Buildings
196,DCMS,Historic England,15/03/2022,The Audience Agency,0040139932,"36,594.00",Business Improvement-Programmes & Planning,Bought in Advice
197,DCMS,Historic England,22/03/2022,The Churches Conservation Trust,0083001627,"729,673.00",Business Improvement-Grants,Grants Historic Buildings
198,DCMS,Historic England,09/03/2022,The Heritage Alliance,0081006031,"28,044.00",Business Improvement-Grants,Grants Capacity Building Grants
199,DCMS,Historic England,25/03/2022,The Landmark Trust,0083001664,"118,557.00",Business Improvement-Grants,Grants Historic Buildings
200,DCMS,Historic England,02/03/2022,The London Borough of Brent,0083001589,"30,720.00",Regions Group-High Str (HAZ) - Regions,Grants Area
201,DCMS,Historic England,23/03/2022,The National Churches Trust,0083001631,"705,000.00",Business Improvement-Grants,Grants Historic Buildings
202,DCMS,Historic England,29/03/2022,The National Churches Trust,0083001702,"117,035.00",Business Improvement-Grants,Grants Historic Buildings
203,DCMS,Historic England,29/03/2022,The National Trust,0083001703,"830,200.00",Business Improvement-Grants,Grants Historic Buildings
204,DCMS,Historic England,28/03/2022,The Peter Ashley Activity Centres Trust,0082006169,"131,732.00",Regions Group-London & South East - RD,Grants Historic Buildings
205,DCMS,Historic England,21/03/2022,The Ripley Castle Estate,0083001623,"264,610.00",Business Improvement-Grants,Grants Historic Buildings
206,DCMS,Historic England,04/03/2022,The Seachange Trust T/A Out There Arts,0083001597,"36,000.00",Public Engagement-High Str (HAZ) - Public Engag,Grants Other Grants
207,DCMS,Historic England,25/03/2022,The Society for the Protection of,0082006157,"29,397.00",Regions Group-London & South East - RD,Grants Historic Buildings
208,DCMS,Historic England,29/03/2022,The Weston Park Foundation,0083001700,"78,114.00",Business Improvement-Grants,Grants Historic Buildings
209,DCMS,Historic England,04/03/2022,Tyldesley CIC,0083001596,"25,501.00",Public Engagement-High Str (HAZ) - Public Engag,Grants Other Grants
210,DCMS,Historic England,15/03/2022,University College London,0081006057,"46,909.50",Business Improvement-Grants,Grants Historic Environment
211,DCMS,Historic England,11/03/2022,University of Cambridge,0040140190,"40,000.00",Business Improvement-Grants,Historic Env Commissions VAT
212,DCMS,Historic England,28/03/2022,Wakefield Council,0083001673,"728,604.00",Regions Group-High Str (HAZ) - Regions,Grants Area
213,DCMS,Historic England,16/03/2022,Wallingford Town Council,0082006089,"26,000.00",Regions Group-London & South East - RD,Grants Historic Buildings
214,DCMS,Historic England,09/03/2022,Waltham Forest Council,0082006072,"110,000.00",Regions Group-London & South East - RD,Grants Historic Buildings
215,DCMS,Historic England,22/03/2022,Waltham Forest Council,0082006110,"94,400.00",Regions Group-London & South East - RD,Grants Historic Buildings
216,DCMS,Historic England,22/03/2022,Waltham Forest Council,0082006112,"122,650.00",Regions Group-London & South East - RD,Grants Historic Buildings
217,DCMS,Historic England,22/03/2022,Waltham Forest Council,0082006117,"110,000.00",Regions Group-London & South East - RD,Grants Historic Buildings
218,DCMS,Historic England,24/03/2022,Waltham Forest Council,0082006149,"44,600.00",Regions Group-London & South East - RD,Grants Historic Buildings
219,DCMS,Historic England,25/03/2022,Wentworth Woodhouse Preservation Trust,0082006159,"125,000.00",Regions Group-North East & Yorkshire - RD,Grants Historic Buildings
220,DCMS,Historic England,03/03/2022,Wentworth Woodhouse Preservation Trust,0083001593,"87,826.00",Regions Group-Regions Group Centre,Grants Historic Buildings
221,DCMS,Historic England,03/03/2022,Wentworth Woodhouse Preservation Trust,0083001594,"36,466.00",Regions Group-Regions Group Centre,Grants Historic Buildings
222,DCMS,Historic England,29/03/2022,Wentworth Woodhouse Preservation Trust,0083001706,"268,606.00",Business Improvement-Grants,Grants Historic Buildings
223,DCMS,Historic England,02/03/2022,Wessex Archaeology Ltd,0040139720,"30,000.00",Business Improvement-Grants,Maritime Commissions VAT
224,DCMS,Historic England,25/03/2022,West Lancashire Borough Council,0083001653,"137,483.00",Regions Group-High Str (HAZ) - Regions,Grants Area
225,DCMS,Historic England,31/03/2022,West Midlands Historic Buildings Trust,0090516406,"51,548.20",Regions Group-Midlands - RD,Grants Capacity Building Grants
226,DCMS,Historic England,28/03/2022,Wigan Council,0083001669,"36,000.00",Public Engagement-High Str (HAZ) - Public Engag,Grants Other Grants
227,DCMS,Historic England,22/03/2022,Wisbech & Fenland Museum,0082006122,"46,976.00",Regions Group-East - RD,Grants Historic Buildings
228,DCMS,Historic England,09/03/2022,Womble Bond Dickinson (UK) LLP,0020074833,"25,150.00",Corporate Services-Corporate,Legal Fees
229,DCMS,Historic England,25/03/2022,Wyre Borough Council,0083001652,"351,046.00",Regions Group-High Str (HAZ) - Regions,Grants Area
